lending/lending_fUSD_20260306
["ID","MTS","AMOUNT","RATE_DAILY","PERIOD"]
[407839942,1772825440636,-500.0,0.00014101,2]
[407839944,1772825440645,-500.0,0.00014101,2]
[407839946,1772825440654,-500.0,0.00014101,2]
[407839948,1772825440664,-500.0,0.00014101,2]
[407839950,1772825440673,-500.0,0.00014101,2]
[407839952,1772825440682,-500.0,0.00014101,2]
[407839954,1772825440692,-500.0,0.00014101,2]
[407839956,1772825440704,-500.0,0.00014101,2]
[407839958,1772825440713,-500.0,0.00014101,2]
[407839960,1772825440722,-500.0,0.00014101,2]
[407839963,1772825440731,-500.0,0.00014101,2]
[407839966,1772825440740,-500.0,0.00014101,2]
[407839968,1772825440749,-548.67,0.00014136,2]
[407839970,1772825440758,-4000.0,0.00014154,2]
[407839972,1772825440769,-500.0,0.00014185,2]
[407839974,1772825440778,-500.0,0.00014185,2]
[407839976,1772825440788,-500.0,0.00014185,2]
[407839978,1772825440798,-500.0,0.00014185,2]
[407839980,1772825440807,-1000.0,0.00014221,2]
[407839982,1772825440816,-1000.0,0.00014221,2]
[407839984,1772825440826,-500.0,0.00014221,2]
[407839986,1772825440835,-500.0,0.00014221,2]
[407839988,1772825440844,-500.0,0.00014221,2]
[407839990,1772825440853,-502.06786579,0.00014221,2]
[407839992,1772825440862,-500.0,0.00014221,2]
[407839994,1772825440872,-1000.0,0.00014221,2]
[407839996,1772825440881,-500.0,0.00014221,2]
[407839998,1772825440891,-14225.75263405,0.00014279,2]
[407840000,1772825440899,-500.0,0.00014318,2]
[407840002,1772825440909,-200.0,0.0001441,2]
[407840004,1772825440918,-548.67,0.0001441,2]
[407840006,1772825440927,-500.0,0.00014421,2]
[407840008,1772825440936,-494.64624274,0.00014421,2]
[407840010,1772825440946,-1000.0,0.00014421,2]
[407840012,1772825440956,-1000.0,0.00014421,2]
[407840014,1772825440965,-849.85488597,0.00014421,2]
[407840016,1772825440974,-1000.0,0.00014421,2]
[407840018,1772825440984,-1000.0,0.00014421,2]
[407840020,1772825440993,-1000.0,0.00014421,2]
[407840021,1772825441002,-1000.0,0.00014421,2]
[407840022,1772825441011,-1000.0,0.00014421,2]
[407840023,1772825441020,-1000.0,0.00014421,2]
[407840024,1772825441029,-235.21838039,0.00014421,2]
[407840025,1772825441038,-1000.0,0.00014421,2]
[407840026,1772825441047,-1000.0,0.00014421,2]
[407840027,1772825441057,-556.1229892,0.00014421,2]
[407840028,1772825441067,-1000.0,0.00014421,2]
[407840029,1772825441077,-500.0,0.00014421,2]
[407840030,1772825441086,-500.18261012,0.00014421,2]
[407840031,1772825441097,-1000.0,0.00014421,2]
[407840032,1772825441106,-1000.0,0.00014421,2]
[407840033,1772825441117,-1600.0,0.00014437,2]
[407840034,1772825441126,-14667.31159298,0.0001445,2]
[407840035,1772825441136,-13390.32300577,0.00014451,2]
[407840036,1772825441147,-301.78790722,0.00014473,2]
[407840037,1772825441158,-500.0,0.00014531,2]
[407840038,1772825441168,-500.0,0.00014592,2]
[407840039,1772825441177,-4564.77767955,0.00014646,2]
[407840040,1772825441187,-548.67,0.00014684,2]
[407840041,1772825441197,-255.0,0.00014712,2]
[407840042,1772825441206,-300.0,0.00014762,2]
[407840043,1772825441217,-300.0,0.00014762,2]
[407840044,1772825441226,-300.0,0.00014762,2]
[407840045,1772825441236,-300.0,0.00014762,2]
[407840046,1772825441246,-250.0,0.00014762,2]
[407840047,1772825441255,-500.0,0.00014762,2]
[407840048,1772825441266,-600.0,0.00014762,2]
[407840049,1772825441276,-600.0,0.00014762,2]
[407840050,1772825441287,-600.0,0.00014762,2]
[407840051,1772825441297,-305.05958288,0.00014762,2]
[407840052,1772825441307,-300.0,0.00014762,2]
[407840053,1772825441316,-300.0,0.00014762,2]
[407840054,1772825441325,-600.0,0.00014762,2]
[407840055,1772825441335,-600.0,0.00014762,2]
[407840056,1772825441344,-300.0,0.00014762,2]
[407840057,1772825441353,-5000.0,0.00014762,2]
[407840058,1772825441362,-150.0,0.00014762,2]
[407840059,1772825441372,-311.2601902,0.00014768,2]
[407840060,1772825441381,-1001.33101077,0.00014768,2]
[407840061,1772825441390,-1500.0,0.00014768,2]
[407840062,1772825441400,-362.62096704,0.00014866,2]
[407840063,1772825441410,-500.0,0.00014867,2]
[407840064,1772825441419,-500.0,0.00014867,2]
[407840065,1772825441429,-500.0,0.00014867,2]
[407840066,1772825441438,-500.0,0.00014867,2]
[407840067,1772825441447,-500.0,0.00014867,2]
[407840068,1772825441457,-1680.0,0.00014957,2]
[407840069,1772825441466,-200.0,0.00014958,2]
[407840070,1772825441476,-250.0,0.00014958,2]
[407840071,1772825441485,-548.71434397,0.00014958,2]
[407840072,1772825441494,-1500.0,0.00014968,2]
[407840073,1772825441504,-1500.0,0.00014968,2]
[407840074,1772825441514,-1500.0,0.00014968,2]
[407840075,1772825441524,-1500.0,0.00014968,2]
[407840076,1772825441534,-1442.99956491,0.00014968,2]
[407840077,1772825441543,-1500.0,0.00014968,2]
[407840078,1772825441554,-1134.58548457,0.00014968,2]
[407840079,1772825441564,-1057.2086331,0.00014968,2]
[407840080,1772825441574,-1500.0,0.00014968,2]
[407840081,1772825441584,-1500.0,0.00014968,2]
[407840082,1772825441594,-500.0,0.0001505,2]
[407840083,1772825441603,-900.0,0.00015068,2]
[407840084,1772825441613,-14667.31159298,0.00015131,2]
[407840085,1772825441622,-13390.32300577,0.00015132,2]
[407840086,1772825441632,-2000.0,0.00015316,2]
[407840087,1772825441642,-449.5306254,0.00015415,2]
[407840088,1772825441653,-530.88059829,0.00015415,2]
[407840089,1772825441663,-1000.0,0.00015415,2]
[407840090,1772825441674,-1000.0,0.00015415,2]
[407840091,1772825441683,-1000.0,0.00015415,2]
[407840092,1772825441697,-200.0,0.00015506,2]
[407840093,1772825441707,-2000.0,0.00015516,2]
[407840094,1772825441716,-489.71509886,0.00015516,2]
[407840095,1772825441725,-2000.0,0.00015516,2]
[407840096,1772825441738,-2000.0,0.00015516,2]
[407840097,1772825441748,-2000.0,0.00015516,2]
[407840098,1772825441758,-2000.0,0.00015516,2]
[407840099,1772825441768,-4564.77767955,0.00015521,2]
[407840100,1772825441777,-3816.51,0.00015547,2]
[407840101,1772825441787,-1000.0,0.00015598,2]
[407840102,1772825441799,-217.38,0.00015742,2]
[407840103,1772825441809,-1852.42,0.00015742,2]
[407840104,1772825441819,-1000.0,0.00015742,2]
[407840105,1772825441828,-3240.0,0.00015742,2]
[407840106,1772825441838,-14667.31159298,0.00015813,2]
[407840107,1772825441847,-13390.32300577,0.00015813,2]
[407840108,1772825441857,-2000.0,0.0001582,2]
[407840109,1772825441868,-2003.37044262,0.00015864,2]
[407840110,1772825441877,-150.0,0.000159,2]
[407840111,1772825441887,-200.72181509,0.000159,2]
[407840112,1772825441896,-150.0,0.000159,2]
[407840113,1772825441906,-2000.0,0.0001592,2]
[407840114,1772825441915,-433.0,0.00015922,2]
[407840115,1772825441924,-1635.64,0.0001594,2]
[407840116,1772825441933,-258.69744367,0.0001596,2]
[407840117,1772825441943,-1500.0,0.00015963,2]
[407840118,1772825441952,-1500.0,0.00015963,2]
[407840119,1772825441963,-1500.0,0.00015963,2]
[407840120,1772825441973,-2000.0,0.0001602,2]
[407840121,1772825441983,-1600.0,0.00016041,2]
[407840122,1772825441993,-200.0,0.00016054,2]
[407840123,1772825442002,-2500.0,0.00016064,2]
[407840124,1772825442011,-546.47179689,0.00016064,2]
[407840125,1772825442020,-2500.0,0.00016064,2]
[407840126,1772825442029,-2500.0,0.00016064,2]
[407840127,1772825442039,-2500.0,0.00016064,2]
[407840128,1772825442048,-7979.49,0.00016116,2]
[407840129,1772825442058,-2000.0,0.0001612,2]
[407840130,1772825442067,-1500.0,0.00016146,2]
[407840131,1772825442077,-500.0,0.00016199,2]
[407840132,1772825442086,-386.76,0.0001621,2]
[407840133,1772825442097,-2000.0,0.0001622,2]
[407840134,1772825442106,-600.0,0.00016255,2]
[407840135,1772825442115,-600.0,0.00016255,14]
[407840136,1772825442124,-2000.0,0.0001632,2]
[407840137,1772825442133,-4564.77767955,0.00016397,2]
[407840138,1772825442143,-150.0,0.000164,2]
[407840139,1772825442153,-213.0,0.000164,2]
[407840140,1772825442162,-302.46,0.000164,2]
[407840141,1772825442171,-352.32802655,0.000164,2]
[407840142,1772825442180,-900.0,0.00016438,2]
[407840143,1772825442191,-2351.0,0.00016452,2]
[407840144,1772825442200,-386.76,0.0001648,2]
[407840145,1772825442210,-14667.31159298,0.00016494,2]
[407840146,1772825442219,-13390.32300577,0.00016494,2]
[407840147,1772825442229,-1094.27,0.000165,2]
[407840148,1772825442239,-1778.57186039,0.00016511,2]
[407840149,1772825442248,-153.0,0.00016552,3]
[407840150,1772825442258,-151.0,0.00016601,2]
[407840151,1772825442267,-240.02207299,0.00016602,2]
[407840152,1772825442276,-3000.0,0.00016612,2]
[407840153,1772825442286,-214.62773312,0.00016612,2]
[407840154,1772825442295,-3000.0,0.00016612,2]
[407840155,1772825442305,-3000.0,0.00016612,2]
[407840156,1772825442314,-9000.0,0.00016656,2]
[407840157,1772825442323,-250.0,0.00016656,2]
[407840158,1772825442333,-259.41713478,0.00016656,2]
[407840159,1772825442342,-721.12765535,0.00016656,2]
[407840160,1772825442352,-250.0,0.00016656,2]
[407840161,1772825442361,-250.0,0.00016656,2]
[407840162,1772825442371,-250.0,0.00016656,2]
[407840163,1772825442380,-250.0,0.00016656,2]
[407840164,1772825442389,-250.0,0.00016656,2]
[407840165,1772825442399,-250.0,0.00016656,2]
[407840166,1772825442408,-250.0,0.00016656,2]
[407840167,1772825442417,-1000.0,0.00016656,2]
[407840168,1772825442427,-250.0,0.00016656,2]
[407840169,1772825442436,-1000.0,0.00016656,2]
[407840170,1772825442445,-250.0,0.00016656,2]
[407840171,1772825442455,-1000.0,0.00016656,2]
[407840172,1772825442464,-250.0,0.00016656,2]
[407840173,1772825442473,-578.20924308,0.00016656,2]
[407840174,1772825442483,-1000.0,0.00016656,2]
[407840175,1772825442492,-609.02156601,0.00016656,2]
[407840176,1772825442502,-2500.0,0.00016656,2]
[407840177,1772825442511,-2500.0,0.00016656,2]
[407840178,1772825442521,-2500.0,0.00016656,2]
[407840179,1772825442531,-2500.0,0.00016656,2]
[407840180,1772825442541,-2500.0,0.00016656,2]
[407840181,1772825442550,-2500.0,0.00016656,2]
[407840182,1772825442560,-174.61919141,0.00016656,2]
[407840183,1772825442569,-2500.0,0.00016656,2]
[407840184,1772825442579,-2500.0,0.00016656,2]
[407840185,1772825442589,-1620.82343587,0.00016656,2]
[407840186,1772825442599,-151.0,0.00016656,2]
[407840187,1772825442608,-500.0,0.00016656,2]
[407840188,1772825442618,-500.0,0.00016656,2]
[407840189,1772825442627,-500.0,0.00016656,2]
[407840190,1772825442637,-1000.0,0.00016656,2]
[407840191,1772825442647,-500.0,0.00016656,2]
[407840192,1772825442656,-1000.0,0.00016656,2]
[407840193,1772825442666,-500.0,0.00016656,2]
[407840194,1772825442676,-500.0,0.00016656,2]
[407840195,1772825442686,-1000.0,0.00016656,2]
[407840197,1772825442698,-500.0,0.00016656,2]
[407840199,1772825442707,-1000.0,0.00016656,2]
[407840201,1772825442717,-500.0,0.00016656,2]
[407840202,1772825442726,-1000.0,0.00016656,2]
[407840203,1772825442736,-500.0,0.00016656,2]
[407840205,1772825442745,-500.0,0.00016656,2]
[407840212,1772825442933,-1000.0,0.00016656,2]
[407840213,1772825442943,-1000.0,0.00016656,2]
[407840214,1772825442952,-500.0,0.00016656,2]
[407840215,1772825442962,-500.0,0.00016656,2]
[407840216,1772825442971,-1000.0,0.00016656,2]
[407840217,1772825442981,-938.21883186,0.00016656,2]
[407840218,1772825442990,-693.3919763,0.00016656,2]
[407840219,1772825443000,-151.0,0.00016656,2]
[407840220,1772825443010,-503.01170887,0.00016656,2]
[407840221,1772825443019,-250.0,0.00016656,2]
[407840222,1772825443029,-250.0,0.00016656,2]
[407840223,1772825443038,-250.0,0.00016656,2]
[407840224,1772825443047,-3000.0,0.00016656,2]
[407840225,1772825443056,-3000.0,0.00016656,2]
[407840226,1772825443066,-3000.0,0.00016656,2]
[407840227,1772825443075,-3000.0,0.00016656,2]
[407840228,1772825443085,-262.90206542,0.00016656,2]
[407840229,1772825443094,-3000.0,0.00016656,2]
[407840230,1772825443104,-3000.0,0.00016656,2]
[407840231,1772825443113,-3000.0,0.00016656,2]
[407840232,1772825443123,-3000.0,0.00016656,2]
[407840233,1772825443133,-3000.0,0.00016656,2]
[407840234,1772825443142,-3000.0,0.00016656,2]
[407840235,1772825443151,-3000.0,0.00016656,2]
[407840236,1772825443161,-269.917619,0.00016656,2]
[407840237,1772825443171,-743.50770149,0.00016656,2]
[407840238,1772825443180,-500.0,0.00016673,2]
[407840239,1772825443189,-495.26762685,0.000167,2]
[407840240,1772825443199,-9000.0,0.00016711,2]
[407840241,1772825443210,-151.0,0.00016711,2]
[407840242,1772825443219,-719.04747942,0.00016711,2]
[407840243,1772825443229,-386.76,0.0001675,2]
[407840244,1772825443239,-151.0,0.00016766,2]
[407840245,1772825443249,-745.65223616,0.00016766,2]
[407840246,1772825443258,-151.0,0.00016821,2]
[407840247,1772825443268,-773.2413689,0.00016821,2]
[407840248,1772825443277,-151.0,0.00016876,2]
[407840249,1772825443287,-801.85129955,0.00016876,2]
[407840250,1772825443296,-151.0,0.00016931,2]
[407840251,1772825443307,-831.51979763,0.00016931,2]
[407840252,1772825443316,-151.0,0.00016986,2]
[407840253,1772825443326,-862.28603014,0.00016986,2]
[407840254,1772825443336,-500.0,0.00016999,2]
[407840255,1772825443346,-386.76,0.0001702,2]
[407840256,1772825443355,-151.0,0.00017041,2]
[407840257,1772825443365,-894.19061326,0.00017041,2]
[407840258,1772825443375,-9547.53,0.0001707,2]
[407840259,1772825443384,-151.0,0.00017096,2]
[407840260,1772825443394,-927.27566595,0.00017096,2]
[407840261,1772825443403,-151.0,0.00017151,2]
[407840262,1772825443413,-961.58486559,0.00017151,2]
[407840263,1772825443422,-1088.87470879,0.0001716,2]
[407840264,1772825443432,-3500.0,0.0001716,2]
[407840265,1772825443441,-14667.31159298,0.00017175,2]
[407840266,1772825443450,-13390.32300577,0.00017176,2]
[407840267,1772825443460,-181.08010149,0.00017204,2]
[407840268,1772825443469,-151.0,0.00017204,2]
[407840269,1772825443479,-272.62944185,0.00017204,2]
[407840270,1772825443489,-279.9045709,0.00017204,2]
[407840271,1772825443498,-771.01748645,0.00017204,2]
[407840272,1772825443509,-500.0,0.00017206,2]
[407840273,1772825443518,-151.0,0.00017206,2]
[407840274,1772825443528,-997.16350561,0.00017206,2]
[407840275,1772825443537,-705.88057451,0.00017221,2]
[407840276,1772825443546,-736.0,0.00017228,2]
[407840277,1772825443556,-151.0,0.00017261,2]
[407840278,1772825443565,-4564.77767955,0.00017273,2]
[407840279,1772825443574,-386.76,0.0001729,2]
[407840280,1772825443583,-151.0,0.00017316,2]
[407840281,1772825443592,-500.0,0.00017342,2]
[407840282,1772825443602,-151.0,0.00017371,2]
[407840283,1772825443613,-151.0,0.00017426,2]
[407840284,1772825443622,-151.0,0.00017481,2]
[407840285,1772825443631,-20418.27,0.0001751,7]
[407840286,1772825443641,-2041.83,0.0001751,7]
[407840287,1772825443650,-151.0,0.00017536,2]
[407840288,1772825443659,-386.76,0.0001756,2]
[407840289,1772825443668,-1600.0,0.00017645,2]
[407840290,1772825443678,-2708.2791007,0.00017693,2]
[407840291,1772825443687,-1500.0,0.00017708,2]
[407840292,1772825443700,-1000.0,0.0001771,2]
[407840293,1772825443710,-250.0,0.00017732,2]
[407840294,1772825443719,-800.0,0.00017808,2]
[407840295,1772825443728,-386.76,0.0001783,2]
[407840296,1772825443738,-14667.31159298,0.00017856,2]
[407840297,1772825443747,-13390.32300577,0.00017857,2]
[407840298,1772825443756,-1484.34556035,0.000179,2]
[407840299,1772825443767,-1484.34556033,0.000179,2]
[407840300,1772825443776,-1484.34556033,0.000179,2]
[407840301,1772825443785,-1484.34556033,0.000179,2]
[407840302,1772825443794,-215.83,0.00018009,2]
[407840303,1772825443803,-1000.0,0.00018033,2]
[407840304,1772825443825,-15313.7,0.00018035,7]
[407840305,1772825443835,-1531.37,0.00018035,7]
[407840306,1772825443844,-3292.0,0.00018098,2]
[407840307,1772825443853,-386.76,0.000181,2]
[407840308,1772825443862,-4564.77767955,0.00018149,2]
[407840309,1772825443871,-780.83,0.00018245,2]
[407840310,1772825443880,-532.48638413,0.00018335,2]
[407840311,1772825443890,-1681.88812271,0.00018337,2]
[407840312,1772825443900,-876.76,0.00018351,2]
[407840313,1772825443909,-386.76,0.0001837,2]
[407840314,1772825443919,-780.83,0.00018519,2]
[407840315,1772825443928,-14667.31159298,0.00018538,2]
[407840316,1772825443938,-13390.32300577,0.00018538,2]
[407840317,1772825443947,-353.36614651,0.00018546,2]
[407840318,1772825443956,-10209.13,0.00018561,7]
[407840319,1772825443966,-1020.91,0.00018561,7]
[407840320,1772825443975,-1000.0,0.00018598,2]
[407840321,1772825443984,-876.76,0.00018625,2]
[407840322,1772825443993,-386.76,0.0001864,2]
[407840323,1772825444002,-1252.0,0.00018642,2]
[407840324,1772825444012,-325.0,0.0001873,2]
[407840325,1772825444021,-780.83,0.00018793,2]
[407840326,1772825444031,-1000.0,0.00018816,2]
[407840327,1772825444040,-325.0,0.00018841,2]
[407840328,1772825444050,-161.15,0.00018891,2]
[407840329,1772825444059,-151.0,0.00018896,2]
[407840330,1772825444069,-876.76,0.00018899,2]
[407840331,1772825444079,-386.76,0.0001891,2]
[407840332,1772825444088,-325.0,0.00018984,2]
[407840333,1772825444098,-500.0,0.00018999,2]
[407840334,1772825444107,-565.46624358,0.00018999,2]
[407840335,1772825444117,-293.43158057,0.00019,2]
[407840336,1772825444127,-4564.77767955,0.00019024,2]
[407840337,1772825444137,-325.0,0.0001906,2]
[407840338,1772825444148,-780.83,0.00019067,2]
[407840339,1772825444157,-150.0,0.00019122,2]
[407840340,1772825444167,-876.76,0.00019173,2]
[407840341,1772825444176,-3000.0,0.00019178,2]
[407840342,1772825444185,-3000.0,0.00019178,7]
[407840343,1772825444195,-778.32,0.00019178,30]
[407840344,1772825444206,-150.0,0.00019178,2]
[407840345,1772825444215,-386.76,0.0001918,2]
[407840346,1772825444224,-2000.0,0.000192,2]
[407840347,1772825444234,-14667.31159298,0.00019219,2]
[407840348,1772825444243,-13390.32300577,0.00019219,2]
[407840349,1772825444253,-325.0,0.00019226,2]
[407840350,1772825444263,-1600.0,0.00019249,2]
[407840351,1772825444273,-1000.0,0.00019281,2]
[407840352,1772825444283,-780.83,0.00019341,2]
[407840353,1772825444293,-1000.0,0.00019349,2]
[407840354,1772825444303,-609.0,0.00019381,2]
[407840355,1772825444313,-150.0,0.00019381,2]
[407840356,1772825444323,-150.0,0.00019381,2]
[407840357,1772825444332,-150.0,0.00019381,2]
[407840358,1772825444342,-150.0,0.00019381,2]
[407840359,1772825444352,-150.0,0.00019381,2]
[407840360,1772825444361,-241.0,0.00019381,2]
[407840361,1772825444371,-492.428563,0.0001939,2]
[407840362,1772825444380,-213.73225262,0.00019395,2]
[407840363,1772825444390,-500.0,0.00019395,2]
[407840364,1772825444400,-2000.0,0.000194,2]
[407840365,1772825444410,-2000.0,0.000194,2]
[407840366,1772825444421,-2000.0,0.000194,2]
[407840367,1772825444431,-2000.0,0.000194,2]
[407840368,1772825444441,-2000.0,0.000194,2]
[407840369,1772825444451,-2000.0,0.000194,2]
[407840370,1772825444459,-2000.0,0.000194,2]
[407840371,1772825444468,-2000.0,0.000194,2]
[407840372,1772825444476,-2000.0,0.000194,2]
[407840373,1772825444483,-2000.0,0.000194,2]
[407840374,1772825444490,-2000.0,0.000194,2]
[407840375,1772825444498,-2000.0,0.000194,2]
[407840376,1772825444508,-2000.0,0.000194,2]
[407840377,1772825444518,-2000.0,0.000194,2]
[407840378,1772825444528,-2000.0,0.000194,2]
[407840379,1772825444537,-2000.0,0.000194,2]
[407840380,1772825444547,-2000.0,0.000194,2]
[407840381,1772825444556,-2000.0,0.000194,2]
[407840382,1772825444565,-2000.0,0.000194,2]
[407840383,1772825444574,-2000.0,0.000194,2]
[407840384,1772825444583,-2000.0,0.000194,2]
[407840385,1772825444593,-2000.0,0.000194,2]
[407840386,1772825444603,-2000.0,0.000194,2]
[407840387,1772825444612,-2000.0,0.000194,2]
[407840388,1772825444622,-2000.0,0.000194,2]
[407840389,1772825444631,-2000.0,0.000194,2]
[407840390,1772825444641,-2000.0,0.000194,2]
[407840391,1772825444650,-2000.0,0.000194,2]
[407840392,1772825444659,-2000.0,0.000194,2]
[407840393,1772825444669,-2000.0,0.000194,2]
[407840394,1772825444678,-2000.0,0.000194,2]
[407840395,1772825444688,-2000.0,0.000194,2]
[407840396,1772825444701,-2000.0,0.000194,2]
[407840397,1772825444711,-325.0,0.00019436,2]
[407840398,1772825444720,-150.0,0.00019437,2]
[407840399,1772825444732,-876.76,0.00019447,2]
[407840400,1772825444741,-386.76,0.0001945,2]
[407840401,1772825444750,-172.0,0.00019516,2]
[407840402,1772825444759,-150.0,0.00019581,2]
[407840403,1772825444769,-17100.0,0.000196,7]
[407840404,1772825444778,-780.83,0.00019615,2]
[407840405,1772825444788,-500.0,0.00019616,2]
[407840406,1772825444797,-325.0,0.00019621,2]
[407840407,1772825444806,-2004.979528,0.00019622,7]
[407840408,1772825444815,-730.407018,0.00019622,7]
[407840409,1772825444825,-1000.0,0.00019678,2]
[407840410,1772825444834,-153.0,0.00019683,3]
[407840411,1772825444844,-1000.9885,0.00019685,120]
[407840412,1772825444855,-2000.0,0.00019699,2]
[407840413,1772825444864,-2000.0,0.00019699,2]
[407840414,1772825444875,-2000.0,0.00019699,2]
[407840415,1772825444886,-2000.0,0.00019699,2]
[407840416,1772825444897,-2000.0,0.00019699,2]
[407840417,1772825444909,-2000.0,0.00019699,2]
[407840418,1772825444918,-2000.0,0.00019699,2]
[407840419,1772825444927,-2000.0,0.00019699,2]
[407840420,1772825444937,-2000.0,0.00019699,2]
[407840421,1772825444948,-2000.0,0.00019699,2]
[407840422,1772825444959,-2000.0,0.00019699,2]
[407840423,1772825444969,-2000.0,0.00019699,2]
[407840424,1772825444979,-2000.0,0.00019699,2]
[407840425,1772825444988,-2000.0,0.00019699,2]
[407840426,1772825444998,-2000.0,0.00019699,2]
[407840428,1772825445008,-2000.0,0.00019699,2]
[407840430,1772825445017,-2000.0,0.00019699,2]
[407840432,1772825445027,-2000.0,0.00019699,2]
[407840433,1772825445036,-2000.0,0.00019699,2]
[407840434,1772825445045,-2000.0,0.00019699,2]
[407840435,1772825445055,-2000.0,0.00019699,2]
[407840436,1772825445063,-2000.0,0.00019699,2]
[407840437,1772825445073,-2000.0,0.00019699,2]
[407840438,1772825445082,-2000.0,0.00019699,2]
[407840439,1772825445093,-2000.0,0.00019699,2]
[407840440,1772825445106,-2000.0,0.00019699,2]
[407840441,1772825445124,-3400.0,0.000197,7]
[407840442,1772825445134,-2000.0,0.00019705,2]
[407840443,1772825445145,-2000.0,0.00019705,2]
[407840444,1772825445155,-2000.0,0.00019705,2]
[407840445,1772825445164,-2000.0,0.00019705,2]
[407840446,1772825445174,-2000.0,0.00019705,2]
[407840447,1772825445184,-2000.0,0.00019705,2]
[407840448,1772825445193,-2000.0,0.00019705,2]
[407840449,1772825445203,-2000.0,0.00019705,2]
[407840450,1772825445214,-2000.0,0.00019705,2]
[407840451,1772825445224,-2000.0,0.00019705,2]
[407840452,1772825445234,-2000.0,0.00019705,2]
[407840453,1772825445244,-2000.0,0.00019705,2]
[407840454,1772825445253,-2000.0,0.00019705,2]
[407840455,1772825445263,-2000.0,0.00019705,2]
[407840456,1772825445273,-2000.0,0.00019705,2]
[407840457,1772825445335,-2000.0,0.00019705,2]
[407840458,1772825445345,-2000.0,0.00019705,2]
[407840459,1772825445355,-2000.0,0.00019705,2]
[407840460,1772825445365,-2000.0,0.00019705,2]
[407840461,1772825445375,-2000.0,0.00019705,2]
[407840462,1772825445385,-2000.0,0.00019705,2]
[407840463,1772825445394,-2000.0,0.00019705,2]
[407840464,1772825445403,-2000.0,0.00019705,2]
[407840465,1772825445412,-2000.0,0.00019705,2]
[407840466,1772825445421,-2000.0,0.00019705,2]
[407840467,1772825445431,-2000.0,0.00019705,2]
[407840468,1772825445441,-2000.0,0.00019705,2]
[407840469,1772825445450,-2000.0,0.00019705,2]
[407840470,1772825445459,-2000.0,0.00019705,2]
[407840471,1772825445468,-2000.0,0.00019705,2]
[407840472,1772825445477,-2000.0,0.00019705,2]
[407840473,1772825445487,-2000.0,0.00019705,2]
[407840474,1772825445496,-2000.0,0.00019705,2]
[407840475,1772825445505,-2000.0,0.00019705,2]
[407840476,1772825445515,-2000.0,0.00019705,2]
[407840477,1772825445524,-2000.0,0.00019705,2]
[407840478,1772825445534,-2000.0,0.00019705,2]
[407840479,1772825445543,-1000.0,0.0001972,2]
[407840480,1772825445552,-386.76,0.0001972,2]
[407840481,1772825445562,-876.76,0.00019721,2]
[407840482,1772825445571,-250.0,0.00019726,2]
[407840483,1772825445582,-152.8085332,0.00019737,2]
[407840484,1772825445591,-1000.0,0.00019774,2]
[407840485,1772825445600,-3400.0,0.000198,7]
[407840486,1772825445611,-172.74325605,0.00019804,2]
[407840487,1772825445620,-141628.69642043,0.0001981,2]
[407840488,1772825445629,-446.12402339,0.00019873,2]
[407840489,1772825445638,-557.56,0.00019889,2]
[407840490,1772825445648,-25000.0,0.00019891,3]
[407840491,1772825445657,-1058.11044493,0.000199,2]
[407840492,1772825445666,-25000.0,0.000199,3]
[407840493,1772825445675,-2148.8308,0.000199,2]
[407840494,1772825445683,-25000.0,0.000199,3]